fUST/lending_fUST_20250612
["ID","MTS","AMOUNT","RATE_DAILY","PERIOD"]
[365514478,1749732635629,-1000.0,0.00022048,2]
[365514479,1749732635638,-1000.0,0.00022054,2]
[365514480,1749732635646,-198034.69818551,0.00022083,2]
[365514481,1749732635659,-357840.76353449,0.00022083,2]
[365514482,1749732635668,-3736.77043528,0.00022085,2]
[365514483,1749732635677,-970.40782091,0.00022092,2]
[365514484,1749732635686,-1077.1181603,0.00022092,2]
[365514485,1749732635696,-1000.0,0.00022092,2]
[365514486,1749732635705,-978.04515246,0.00022141,6]
[365514487,1749732635714,-500.0,0.00022156,2]
[365514488,1749732635724,-500.0,0.0002219,3]
[365514489,1749732635733,-317.48865,0.00022191,7]
[365514490,1749732635744,-317.48865,0.00022191,7]
[365514491,1749732635753,-460.0,0.00022191,4]
[365514492,1749732635762,-460.0,0.00022191,2]
[365514493,1749732635771,-460.0,0.00022191,4]
[365514494,1749732635781,-460.0,0.00022191,4]
[365514495,1749732635790,-460.0,0.00022191,4]
[365514496,1749732635800,-978.82,0.00022191,4]
[365514497,1749732635810,-576.19,0.00022191,4]
[365514498,1749732635822,-1452.1,0.00022191,4]
[365514499,1749732635831,-460.0,0.00022191,4]
[365514500,1749732635841,-460.0,0.00022191,4]
[365514501,1749732635856,-460.0,0.00022191,4]
[365514502,1749732635869,-350.0,0.00022191,2]
[365514503,1749732635879,-460.0,0.00022191,4]
[365514504,1749732635889,-486.45,0.00022191,4]
[365514505,1749732635899,-518.11,0.00022191,4]
[365514506,1749732635908,-460.0,0.00022191,4]
[365514507,1749732635917,-2329.72,0.00022191,4]
[365514508,1749732635927,-985.35,0.00022191,4]
[365514509,1749732635937,-460.0,0.00022191,4]
[365514510,1749732635946,-579.6,0.00022191,4]
[365514511,1749732635956,-460.0,0.00022191,4]
[365514512,1749732635966,-460.0,0.00022191,4]
[365514513,1749732635975,-1291.55,0.00022191,4]
[365514514,1749732635984,-809.41,0.00022191,4]
[365514515,1749732635994,-1603.61,0.00022191,4]
[365514516,1749732636003,-1264.79,0.00022191,4]
[365514517,1749732636013,-460.0,0.00022191,4]
[365514518,1749732636022,-190.3,0.00022198,5]
[365514519,1749732636032,-185.09474155,0.000222,69]
[365514520,1749732636041,-317.48865,0.0002224,7]
[365514521,1749732636050,-317.48865,0.0002224,7]
[365514522,1749732636059,-978.04515246,0.00022279,6]
[365514523,1749732636069,-800.0,0.00022331,2]
[365514524,1749732636078,-883.36793121,0.00022373,2]
[365514525,1749732636087,-190.3,0.00022376,6]
[365514526,1749732636097,-1500.0,0.0002239,2]
[365514527,1749732636106,-978.04515246,0.00022417,7]
[365514528,1749732636116,-160.0,0.00022464,2]
[365514529,1749732636125,-317.48865,0.00022465,7]
[365514530,1749732636134,-317.48865,0.00022465,7]
[365514531,1749732636144,-460.0,0.00022465,4]
[365514532,1749732636153,-460.0,0.00022465,2]
[365514533,1749732636162,-275.38,0.00022465,4]
[365514534,1749732636171,-320.0,0.00022465,4]
[365514535,1749732636182,-460.0,0.00022465,4]
[365514536,1749732636191,-978.82,0.00022465,4]
[365514537,1749732636200,-576.19,0.00022465,4]
[365514538,1749732636209,-1452.1,0.00022465,4]
[365514539,1749732636219,-460.0,0.00022465,4]
[365514540,1749732636228,-460.0,0.00022465,4]
[365514541,1749732636237,-460.0,0.00022465,4]
[365514542,1749732636247,-350.0,0.00022465,2]
[365514543,1749732636257,-460.0,0.00022465,4]
[365514544,1749732636267,-486.45,0.00022465,4]
[365514545,1749732636276,-518.11,0.00022465,4]
[365514546,1749732636285,-460.0,0.00022465,4]
[365514547,1749732636294,-2329.72,0.00022465,4]
[365514548,1749732636303,-985.35,0.00022465,4]
[365514549,1749732636313,-460.0,0.00022465,4]
[365514550,1749732636322,-579.6,0.00022465,4]
[365514551,1749732636332,-447.69,0.00022465,4]
[365514552,1749732636342,-500.0,0.00022465,2]
[365514553,1749732636351,-460.0,0.00022465,4]
[365514554,1749732636360,-1291.55,0.00022465,4]
[365514555,1749732636370,-809.41,0.00022465,4]
[365514556,1749732636379,-1603.61,0.00022465,4]
[365514557,1749732636389,-1264.79,0.00022465,4]
[365514558,1749732636398,-457.53719606,0.00022465,4]
[365514559,1749732636407,-3736.77043528,0.00022492,2]
[365514560,1749732636416,-159.32778121,0.00022493,2]
[365514561,1749732636425,-1500.0,0.0002251,2]
[365514562,1749732636434,-1500.0,0.0002251,2]
[365514563,1749732636444,-190.3,0.00022554,6]
[365514564,1749732636453,-978.04515246,0.00022555,7]
[365514565,1749732636463,-154.96762593,0.00022564,3]
[365514566,1749732636472,-153.0,0.00022564,3]
[365514567,1749732636482,-153.0,0.00022564,3]
[365514568,1749732636491,-153.0,0.00022564,3]
[365514569,1749732636500,-153.0,0.00022564,3]
[365514570,1749732636509,-153.0,0.00022564,3]
[365514571,1749732636518,-153.0,0.00022564,3]
[365514572,1749732636528,-153.0,0.00022564,3]
[365514573,1749732636537,-153.0,0.00022564,3]
[365514574,1749732636547,-155.19297462,0.00022564,3]
[365514575,1749732636556,-317.0,0.00022564,3]
[365514576,1749732636567,-317.0,0.00022564,3]
[365514577,1749732636576,-317.0,0.00022564,3]
[365514578,1749732636585,-317.0,0.00022564,3]
[365514579,1749732636594,-317.0,0.00022564,3]
[365514580,1749732636603,-317.0,0.00022564,3]
[365514581,1749732636613,-317.0,0.00022564,3]
[365514582,1749732636622,-308.9982552,0.00022564,3]
[365514583,1749732636631,-975.804,0.00022592,2]
[365514584,1749732636640,-653.0,0.00022592,2]
[365514585,1749732636649,-2160.0,0.00022592,2]
[365514586,1749732636658,-1095.24926172,0.00022596,2]
[365514587,1749732636667,-1500.0,0.00022596,2]
[365514588,1749732636676,-1048.22,0.000226,7]
[365514589,1749732636686,-215.0738,0.000226,2]
[365514590,1749732636695,-500.0,0.00022609,2]
[365514591,1749732636705,-500.0,0.00022609,2]
[365514592,1749732636715,-500.0,0.00022609,2]
[365514593,1749732636724,-500.0,0.00022609,2]
[365514594,1749732636733,-500.0,0.00022609,2]
[365514595,1749732636747,-164.34014274,0.00022609,2]
[365514596,1749732636756,-500.0,0.00022609,2]
[365514597,1749732636765,-500.0,0.00022609,2]
[365514598,1749732636774,-500.0,0.00022609,2]
[365514599,1749732636784,-500.0,0.00022609,2]
[365514600,1749732636793,-500.0,0.00022609,2]
[365514601,1749732636803,-500.0,0.00022609,2]
[365514602,1749732636811,-500.0,0.00022609,2]
[365514603,1749732636820,-500.0,0.00022609,2]
[365514604,1749732636829,-500.0,0.00022609,2]
[365514605,1749732636838,-500.0,0.00022609,2]
[365514606,1749732636848,-500.0,0.00022609,2]
[365514607,1749732636858,-200.0,0.0002261,7]
[365514608,1749732636868,-200.0,0.0002261,7]
[365514609,1749732636876,-200.0,0.0002261,7]
[365514610,1749732636885,-200.0,0.0002261,7]
[365514611,1749732636894,-200.0,0.0002261,7]
[365514612,1749732636904,-200.0,0.0002261,7]
[365514613,1749732636913,-2234.42128,0.00022628,3]
[365514614,1749732636922,-2477.18,0.00022633,2]
[365514615,1749732636933,-566.07978846,0.0002264,2]
[365514616,1749732636942,-317.48865,0.00022659,7]
[365514617,1749732636951,-317.488648,0.00022659,7]
[365514618,1749732636961,-978.04515246,0.00022693,7]
[365514619,1749732636970,-190.3,0.00022732,6]
[365514620,1749732636979,-500.0,0.00022738,4]
[365514621,1749732636988,-178.602612,0.00022739,7]
[365514622,1749732636997,-460.35,0.00022739,4]
[365514623,1749732637007,-460.0,0.00022739,2]
[365514624,1749732637017,-593.22086883,0.00022739,4]
[365514625,1749732637026,-978.82,0.00022739,4]
[365514626,1749732637035,-576.19,0.00022739,4]
[365514627,1749732637045,-1452.1,0.00022739,4]
[365514628,1749732637055,-460.0,0.00022739,4]
[365514629,1749732637064,-460.0,0.00022739,4]
[365514630,1749732637074,-460.0,0.00022739,4]
[365514631,1749732637084,-350.0,0.00022739,2]
[365514632,1749732637094,-460.0,0.00022739,4]
[365514633,1749732637104,-486.45,0.00022739,4]
[365514634,1749732637114,-518.11,0.00022739,4]
[365514635,1749732637123,-460.0,0.00022739,4]
[365514636,1749732637132,-2329.72,0.00022739,4]
[365514637,1749732637142,-985.35,0.00022739,4]
[365514638,1749732637152,-460.0,0.00022739,4]
[365514639,1749732637162,-579.6,0.00022739,4]
[365514640,1749732637172,-460.0,0.00022739,4]
[365514641,1749732637183,-1291.55,0.00022739,4]
[365514642,1749732637193,-809.41,0.00022739,4]
[365514643,1749732637203,-1603.61,0.00022739,4]
[365514644,1749732637214,-1264.79,0.00022739,4]
[365514645,1749732637223,-6941.48815838,0.00022741,2]
[365514646,1749732637233,-159.32778121,0.00022795,2]
[365514647,1749732637243,-5000.0,0.00022799,2]
[365514648,1749732637253,-978.04515246,0.00022831,8]
[365514649,1749732637263,-500.0,0.00022841,2]
[365514650,1749732637272,-502.56375363,0.00022841,2]
[365514651,1749732637380,-500.0,0.00022841,2]
[365514652,1749732637391,-500.53333285,0.00022841,2]
[365514653,1749732637402,-164.41863091,0.00022859,2]
[365514654,1749732637411,-5000.04,0.00022864,2]
[365514655,1749732637421,-5000.0,0.00022898,2]
[365514656,1749732637432,-3736.77043528,0.000229,2]
[365514657,1749732637441,-190.3,0.0002291,6]
[365514658,1749732637451,-223.44416617,0.00022922,2]
[365514659,1749732637460,-6000.0,0.00022928,2]
[365514660,1749732637469,-2000.0,0.00022938,2]
[365514661,1749732637478,-31832.12,0.00022966,10]
[365514662,1749732637487,-978.04515246,0.00022969,8]
[365514664,1749732637505,-500.0,0.00022973,2]
[365514665,1749732637518,-152.82021469,0.00022973,2]
[365514666,1749732637527,-500.0,0.00022973,2]
[365514667,1749732637537,-305.92164291,0.00022973,2]
[365514668,1749732637547,-500.0,0.00022973,2]
[365514669,1749732637557,-500.0,0.00022973,2]
[365514670,1749732637568,-500.0,0.00022973,2]
[365514671,1749732637577,-500.0,0.00022973,2]
[365514672,1749732637587,-500.0,0.00022973,2]
[365514674,1749732637597,-401.76262452,0.00022973,2]
[365514676,1749732637607,-500.0,0.00022973,2]
[365514678,1749732637616,-362.72173071,0.00022973,2]
[365514680,1749732637625,-558.15041636,0.00022973,2]
[365514682,1749732637636,-522.88385943,0.00022973,2]
[365514684,1749732637645,-500.0,0.00022973,2]
[365514687,1749732637655,-504.69194747,0.00022973,2]
[365514689,1749732637664,-259.30897065,0.00022973,2]
[365514691,1749732637674,-500.0,0.00022973,2]
[365514692,1749732637685,-500.0,0.00022973,2]
[365514693,1749732637695,-501.28822386,0.00022973,2]
[365514694,1749732637705,-500.0,0.00022973,2]
[365514695,1749732637714,-500.0,0.00022973,2]
[365514696,1749732637724,-500.0,0.00022973,2]
[365514697,1749732637734,-500.0,0.00022973,2]
[365514698,1749732637746,-500.0,0.00022973,2]
[365514699,1749732637756,-500.0,0.00022973,2]
[365514700,1749732637766,-500.0,0.00022973,2]
[365514701,1749732637775,-600.0,0.00022973,2]
[365514702,1749732637785,-500.0,0.00022973,2]
[365514703,1749732637794,-500.0,0.00022973,2]
[365514704,1749732637804,-500.0,0.00022973,2]
[365514705,1749732637814,-504.69898795,0.00022973,2]
[365514706,1749732637824,-419.56187725,0.00022973,2]
[365514707,1749732637834,-187.57591546,0.00022973,2]
[365514708,1749732637843,-500.0,0.00022973,2]
[365514709,1749732637853,-500.0,0.00022973,2]
[365514710,1749732637863,-502.75059509,0.00022973,2]
[365514711,1749732637873,-500.0,0.00022973,2]
[365514712,1749732637882,-500.0,0.00022973,2]
[365514713,1749732637892,-500.0,0.00022973,2]
[365514714,1749732637911,-500.0,0.00022973,2]
[365514715,1749732637920,-500.0,0.00022973,2]
[365514716,1749732637930,-500.0,0.00022973,2]
[365514717,1749732637939,-500.0,0.00022973,2]
[365514718,1749732637948,-580.21258141,0.00022973,2]
[365514719,1749732637958,-539.70109157,0.00022973,2]
[365514720,1749732637968,-500.0,0.00022973,2]
[365514721,1749732637977,-279.284194,0.00022973,7]
[365514722,1749732637987,-228.8895992,0.00022984,2]
[365514723,1749732637997,-263.62215976,0.00022984,2]
[365514724,1749732638007,-500.0,0.00022984,2]
[365514725,1749732638017,-500.0,0.00022984,2]
[365514726,1749732638026,-6000.0,0.00022996,2]
[365514727,1749732638037,-38215.6346164,0.00022998,2]
[365514728,1749732638047,-151.0,0.00022998,7]
[365514729,1749732638056,-593.426368,0.00022998,7]
[365514730,1749732638066,-593.426368,0.00022998,7]
[365514731,1749732638076,-151.0,0.00022998,7]
[365514732,1749732638085,-151.0,0.00022998,7]
[365514733,1749732638095,-156.530574,0.00022998,7]
[365514734,1749732638105,-151.0,0.00022998,7]
[365514735,1749732638115,-152.816431,0.00022998,7]
[365514736,1749732638124,-151.0,0.00022998,7]
[365514737,1749732638133,-2113.0,0.00023,30]
[365514738,1749732638143,-3439.46512918,0.00023,2]
[365514739,1749732638153,-182688.31,0.00023,7]
[365514740,1749732638163,-1824.87,0.00023,2]
[365514741,1749732638172,-4259.09,0.00023,7]
[365514742,1749732638184,-151.0,0.00023,7]
[365514743,1749732638193,-151.0,0.00023,7]
[365514744,1749732638202,-195.442183,0.00023,7]
[365514745,1749732638211,-593.426368,0.00023,7]
[365514746,1749732638220,-593.426368,0.00023,7]
[365514747,1749732638230,-151.0,0.00023,7]
[365514748,1749732638240,-155.411693,0.00023,7]
[365514749,1749732638250,-155.411693,0.00023,7]
[365514750,1749732638260,-639.0,0.00023,2]
[365514751,1749732638269,-183.72745,0.00023,7]
[365514752,1749732638280,-151.0,0.00023,7]
[365514753,1749732638290,-183.72745,0.00023,7]
[365514754,1749732638300,-151.0,0.00023,7]
[365514755,1749732638310,-151.0,0.00023,7]
[365514756,1749732638320,-502.160656,0.00023012,2]
[365514757,1749732638330,-460.0,0.00023013,2]
[365514758,1749732638340,-978.82,0.00023013,4]
[365514761,1749732638350,-576.19,0.00023013,4]
[365514762,1749732638360,-1452.1,0.00023013,4]
[365514763,1749732638369,-460.0,0.00023013,4]
[365514764,1749732638379,-460.0,0.00023013,4]
[365514765,1749732638390,-460.0,0.00023013,4]
[365514766,1749732638400,-260.0,0.00023013,2]
[365514767,1749732638410,-460.0,0.00023013,4]
[365514768,1749732638420,-486.45,0.00023013,4]
[365514769,1749732638431,-518.11,0.00023013,4]
[365514770,1749732638441,-333.42699176,0.00023013,4]
[365514771,1749732638452,-2329.72,0.00023013,4]
[365514772,1749732638461,-985.35,0.00023013,4]
[365514773,1749732638471,-460.0,0.00023013,4]
[365514774,1749732638481,-579.6,0.00023013,4]
[365514775,1749732638491,-505.0716492,0.00023013,2]
[365514776,1749732638500,-460.0,0.00023013,4]
[365514777,1749732638510,-1291.55,0.00023013,4]
[365514778,1749732638519,-809.41,0.00023013,4]
[365514779,1749732638529,-1603.61,0.00023013,4]
[365514780,1749732638539,-1264.79,0.00023013,4]
[365514781,1749732638548,-213.0,0.00023014,7]
[365514782,1749732638558,-800.0,0.00023026,2]
[365514783,1749732638569,-2000.0,0.00023058,2]
[365514784,1749732638578,-1000.0,0.00023058,2]
[365514785,1749732638589,-190.3,0.00023088,6]
[365514786,1749732638599,-155.0,0.00023098,2]
[365514787,1749732638608,-460.0,0.00023099,4]
[365514788,1749732638618,-151.0,0.000231,7]
[365514789,1749732638628,-3000.0,0.000231,2]
[365514790,1749732638638,-151.0,0.000231,7]
[365514791,1749732638647,-151.0,0.000231,7]
[365514792,1749732638657,-151.0,0.000231,7]
[365514793,1749732638666,-151.0,0.000231,7]
[365514794,1749732638676,-151.0,0.000231,7]
[365514795,1749732638688,-151.0,0.000231,7]
[365514796,1749732638697,-213.20212768,0.000231,7]
[365514797,1749732638706,-721.56,0.00023101,2]
[365514798,1749732638715,-978.04515246,0.00023107,8]
[365514799,1749732638725,-3000.0,0.0002311,2]
[365514800,1749732638734,-3000.0,0.0002312,2]
[365514801,1749732638746,-3691.42,0.00023126,3]
[365514802,1749732638757,-3792.214011,0.0002313,2]
[365514803,1749732638767,-151.0,0.0002314,7]
[365514804,1749732638776,-151.0,0.0002314,7]
[365514805,1749732638787,-151.0,0.00023141,7]
[365514806,1749732638797,-204.378094,0.00023141,7]
[365514807,1749732638806,-208.462661,0.00023141,7]
[365514808,1749732638816,-1008.88061656,0.00023144,2]
[365514809,1749732638826,-415.2157381,0.00023178,2]
[365514810,1749732638836,-179.8892964,0.00023178,2]
[365514811,1749732638845,-285.3889062,0.00023178,2]
[365514812,1749732638855,-573.3540349,0.00023178,2]
[365514813,1749732638864,-154.5347894,0.00023178,2]
[365514814,1749732638874,-158.8090686,0.00023178,2]
[365514815,1749732638883,-176.9126268,0.00023178,2]
[365514816,1749732638893,-176.9126268,0.00023178,2]
[365514817,1749732638903,-158.8090686,0.00023178,2]
[365514818,1749732638912,-176.9126268,0.00023178,2]
[365514819,1749732638921,-151.0,0.00023189,7]
[365514820,1749732638931,-151.0,0.00023189,7]
[365514821,1749732638940,-151.0,0.00023189,7]
[365514822,1749732638950,-262.874581,0.00023189,7]
[365514823,1749732638959,-594.674082,0.00023189,7]
[365514824,1749732638969,-594.674082,0.00023189,7]
[365514825,1749732638982,-213.20212768,0.00023189,3]
[365514826,1749732638991,-151.0,0.0002319,7]
[365514827,1749732639001,-587.0,0.00023197,2]
[365514828,1749732639011,-300.0,0.00023197,2]
[365514829,1749732639020,-6000.0,0.00023198,3]
[365514830,1749732639030,-151.0,0.000232,9]
[365514831,1749732639039,-160.0,0.000232,3]
[365514832,1749732639049,-424.26423502,0.000232,3]
[365514833,1749732639058,-229.7508257,0.000232,3]
[365514834,1749732639068,-160.0,0.000232,3]
[365514835,1749732639077,-835.15920933,0.000232,3]
[365514836,1749732639087,-200.75322333,0.000232,3]
[365514837,1749732639096,-721.56,0.00023201,7]
[365514839,1749732639106,-162.85516593,0.00023233,2]
[365514841,1749732639116,-161.902361,0.0002324,7]
[365514843,1749732639126,-978.04515246,0.00023245,8]
[365514845,1749732639135,-207.0,0.0002325,2]
[365514847,1749732639144,-151.0,0.00023262,7]
[365514849,1749732639153,-7000.0,0.00023262,3]
[365514851,1749732639162,-190.3,0.00023266,6]
[365514853,1749732639172,-968.0,0.00023271,2]
[365514855,1749732639182,-151.0,0.00023271,7]
[365514857,1749732639193,-151.0,0.00023286,7]
[365514858,1749732639211,-500.0,0.00023286,5]
[365514859,1749732639229,-151.0,0.00023286,7]
[365514860,1749732639239,-151.0,0.00023286,7]
[365514861,1749732639253,-151.0,0.00023286,7]
[365514862,1749732639270,-593.426368,0.00023286,7]
[365514863,1749732639280,-593.426368,0.00023286,7]
[365514864,1749732639291,-151.0,0.00023286,7]
[365514865,1749732639300,-155.411693,0.00023286,7]
[365514866,1749732639309,-155.411693,0.00023286,7]
[365514867,1749732639317,-183.72745,0.00023286,7]
[365514868,1749732639327,-151.0,0.00023286,7]
[365514869,1749732639336,-183.72745,0.00023286,7]
[365514870,1749732639345,-151.0,0.00023287,7]
[365514871,1749732639354,-460.0,0.00023287,2]
[365514872,1749732639363,-978.82,0.00023287,4]
[365514873,1749732639372,-576.19,0.00023287,4]
[365514874,1749732639381,-1452.1,0.00023287,4]
[365514875,1749732639391,-460.0,0.00023287,4]
[365514876,1749732639400,-460.0,0.00023287,4]
[365514877,1749732639409,-460.0,0.00023287,4]
[365514878,1749732639418,-460.0,0.00023287,4]
[365514879,1749732639427,-486.45,0.00023287,4]
[365514880,1749732639437,-518.11,0.00023287,4]
[365514881,1749732639446,-2329.72,0.00023287,4]
[365514882,1749732639455,-985.35,0.00023287,4]
[365514883,1749732639464,-460.0,0.00023287,4]
[365514884,1749732639473,-579.6,0.00023287,4]
[365514885,1749732639482,-340.0,0.00023287,4]
[365514886,1749732639491,-1291.55,0.00023287,4]
[365514887,1749732639500,-809.41,0.00023287,4]
[365514888,1749732639510,-1603.61,0.00023287,4]
[365514889,1749732639519,-1264.79,0.00023287,4]
[365514890,1749732639528,-153.8908305,0.00023288,2]
[365514891,1749732639537,-151.0,0.00023293,7]
[365514892,1749732639546,-262.874581,0.00023293,7]
[365514893,1749732639555,-594.674082,0.00023293,7]
[365514894,1749732639564,-594.674082,0.00023293,7]
[365514895,1749732639573,-151.0,0.00023299,7]
[365514896,1749732639583,-151.0,0.000233,8]
[365514897,1749732639592,-721.56,0.00023301,2]
[365514898,1749732639601,-8128.95999901,0.00023313,7]
[365514899,1749732639611,-151.0,0.00023313,7]
[365514900,1749732639619,-151.0,0.00023313,7]
[365514902,1749732639629,-151.0,0.00023313,7]
[365514905,1749732639639,-800.0,0.00023316,2]
[365514907,1749732639648,-6941.48815837,0.00023321,2]
[365514909,1749732639657,-151.0,0.00023324,7]
[365514911,1749732639667,-618.91648563,0.00023333,2]
[365514913,1749732639676,-168.0,0.00023348,2]
[365514915,1749732639687,-71032.62702343,0.0002335,2]
[365514917,1749732639696,-151.0,0.0002335,7]
[365514919,1749732639705,-261.667001,0.0002335,7]
[365514921,1749732639714,-241.802119,0.0002335,7]
[365514923,1749732639724,-241.802119,0.0002335,7]
[365514925,1749732639734,-151.0,0.0002335,7]
[365514927,1749732639746,-151.0,0.0002335,7]
[365514929,1749732639756,-593.426368,0.0002335,7]
[365514931,1749732639766,-593.426368,0.0002335,7]
[365514933,1749732639778,-154.724936,0.0002335,7]
[365514935,1749732639788,-155.411693,0.0002335,7]
[365514937,1749732639798,-155.411693,0.0002335,7]
[365514939,1749732639807,-183.72745,0.0002335,7]
[365514940,1749732639817,-151.0,0.0002335,7]
[365514941,1749732639828,-183.72745,0.0002335,7]
[365514942,1749732639837,-151.0,0.0002335,7]
[365514943,1749732639847,-151.0,0.0002336,7]
[365514944,1749732639857,-262.874581,0.0002336,7]
[365514945,1749732639867,-594.674082,0.0002336,7]
[365514946,1749732639876,-594.674082,0.0002336,7]
[365514947,1749732639884,-168.0,0.00023361,2]
[365514948,1749732639893,-7000.0,0.00023368,3]
[365514949,1749732639903,-287.27138,0.00023368,7]
[365514950,1749732639913,-258.54995,0.00023368,7]
[365514951,1749732639923,-151.0,0.00023368,7]
[365514952,1749732640026,-151.0,0.00023368,7]
[365514953,1749732640046,-151.0,0.00023368,7]
[365514954,1749732640055,-151.0,0.00023368,7]
[365514955,1749732640065,-474.96259027,0.00023373,2]
[365514956,1749732640074,-500.0,0.00023373,2]
[365514957,1749732640084,-460.0,0.00023373,4]
[365514958,1749732640093,-978.04515246,0.00023383,9]
[365514959,1749732640103,-170.36821949,0.00023389,2]
[365514960,1749732640112,-1000.0,0.00023389,2]
[365514961,1749732640122,-67222.74,0.000234,2]
[365514962,1749732640132,-151.0,0.000234,5]
[365514963,1749732640142,-151.0,0.000234,7]
[365514964,1749732640151,-241.802119,0.000234,7]
[365514965,1749732640161,-241.802119,0.000234,7]
[365514966,1749732640169,-151.0,0.000234,7]
[365514967,1749732640179,-151.0,0.000234,7]
[365514968,1749732640191,-151.0,0.000234,6]
[365514969,1749732640200,-593.426368,0.000234,7]
[365514970,1749732640210,-593.426368,0.000234,7]
[365514971,1749732640219,-155.411693,0.000234,7]
[365514972,1749732640229,-155.411693,0.000234,7]
[365514973,1749732640239,-183.72745,0.000234,7]
[365514974,1749732640248,-183.72745,0.000234,7]
[365514975,1749732640258,-151.0,0.000234,7]
[365514976,1749732640267,-151.0,0.000234,7]
[365514977,1749732640276,-721.56,0.00023401,7]
[365514978,1749732640286,-2351.0,0.0002342,2]
[365514979,1749732640296,-190.3,0.00023444,6]
[365514980,1749732640306,-505.162816,0.00023486,2]
[365514981,1749732640316,-2030.51232,0.000235,2]
[365514982,1749732640326,-151.0,0.000235,7]
[365514983,1749732640337,-151.0,0.000235,9]
[365514984,1749732640346,-192.41692352,0.000235,7]
[365514985,1749732640356,-151.0,0.000235,7]
[365514986,1749732640365,-1048.22,0.000235,7]
[365514987,1749732640375,-262.874581,0.00023501,7]
[365514988,1749732640385,-594.674082,0.00023501,7]
[365514989,1749732640395,-594.674082,0.00023501,7]
[365514990,1749732640404,-721.56,0.00023501,5]
[365514991,1749732640413,-1001.74153471,0.00023521,2]
[365514992,1749732640423,-1000.0,0.00023521,2]
[365514993,1749732640434,-1000.0,0.00023521,2]
[365514994,1749732640443,-1000.0,0.00023521,2]
[365514995,1749732640452,-1000.0,0.00023521,2]
[365514996,1749732640461,-1000.0,0.00023521,2]
[365514997,1749732640470,-1000.0,0.00023521,2]
[365514998,1749732640479,-1004.53295309,0.00023521,2]
[365514999,1749732640489,-1000.0,0.00023521,2]
[365515000,1749732640499,-507.64282871,0.00023521,2]
[365515001,1749732640509,-1006.48431148,0.00023521,2]
[365515002,1749732640518,-1000.0,0.00023521,2]
[365515003,1749732640527,-1000.0,0.00023521,2]
[365515005,1749732640536,-1000.0,0.00023521,2]
[365515007,1749732640545,-1000.0,0.00023521,2]
[365515009,1749732640555,-1000.0,0.00023521,2]
[365515011,1749732640564,-1000.0,0.00023521,2]
[365515012,1749732640573,-481.93686651,0.00023521,2]
[365515013,1749732640582,-1000.0,0.00023521,2]
[365515014,1749732640591,-1000.0,0.00023521,2]
[365515015,1749732640600,-1200.0,0.00023521,2]
[365515016,1749732640610,-1000.0,0.00023521,2]
[365515017,1749732640619,-1000.0,0.00023521,2]
[365515018,1749732640629,-1000.0,0.00023521,2]
[365515019,1749732640639,-1000.0,0.00023521,2]
[365515020,1749732640648,-1000.0,0.00023521,2]
[365515021,1749732640658,-572.80386677,0.00023521,2]
[365515022,1749732640667,-1000.0,0.00023521,2]
[365515023,1749732640677,-1000.0,0.00023521,2]
[365515024,1749732640688,-648.016975,0.00023521,2]